{"text_format":"3","workbook":"xlsx","n_sheets":3,"sheets":["Zusammenfassung","Belegliste","Eigenarbeitsleistungen"],"not_rendered":{"defined_names":2},"read":"whole","date_system":"1900"}

{"sheet":"Zusammenfassung","index":0,"n_rows":52,"n_cols":7,"rows_kept":52,"hidden":true,"merged":[[44,0,48,6]]}
["Übersichtstabelle zur Verwendungsnachweisprüfung"]
["Projekt:",{"$f":"Belegliste!B4","v":"Schulsozialarbeit an ..."}]
["Projektträger",{"$f":"Belegliste!B5","v":0}]
["Zeitraum:","01.01.-31.12.2019"]
[]
[null,"Bewilligung KSV, Bescheid vom 21.01.2019","Bewilligung gemäß letztem Bescheid an Träger","Abweichung i. H. v. 20 Prozent der Bewilligung gem. Bescheid an Träger","Abrechnung lt. Verwendungs-nachweis des Trägers","Anerkennung der Stadt Chemnitz","Differenz Anerkennung - Bewilligung"]
[null,null,"Datum letzter/aktueller Bescheid:"]
[null,null,"2019-02-23"]
["Personalaufwendungen",null,null,{"$f":"1.2*C9","v":{"v":0,"d":"0.00 €"}},null,{"$f":"Belegliste!#REF!","v":{"$error":"#REF!"}},{"$f":"F9-C9","v":{"$error":"#REF!"}}]
["Sachaufwendungen",null,{"$f":"SUM(C11:C27)","v":{"v":0,"d":"0.00 €"}},{"$f":"SUM(D11:D27)","v":{"v":0,"d":"0.00 €"}},{"$f":"SUM(E11:E27)","v":{"v":0,"d":"0.00 €"}},{"$f":"SUM(F11:F27)","v":{"$error":"#REF!"}},{"$f":"F10-C10","v":{"$error":"#REF!"}}]
["Verwaltungsaufwendungen (6%)",null,null,{"$f":"1.2*C11","v":{"v":0,"d":"0.00 €"}},null,{"$f":"Belegliste!#REF!","v":{"$error":"#REF!"}},{"$error":"#REF!"}]
["Ehrenamt",null,null,{"$f":"1.2*C12","v":{"v":0,"d":"0.00 €"}},null,{"$f":"Belegliste!#REF!","v":{"$error":"#REF!"}},{"$error":"#REF!"}]
["Honorar",null,null,{"$f":"1.2*C13","v":{"v":0,"d":"0.00 €"}},null,{"$f":"Belegliste!#REF!","v":{"$error":"#REF!"}},{"$error":"#REF!"}]
["Aus- und Fortbildung",null,null,{"v":0,"d":"0.00 €"},null,{"$f":"Belegliste!#REF!","v":{"$error":"#REF!"}},{"$error":"#REF!"}]
["Supervision",null,null,{"v":0,"d":"0.00 €"},null,{"$f":"Belegliste!#REF!","v":{"$error":"#REF!"}},{"$error":"#REF!"}]
["Pflichtabgaben",null,null,{"v":0,"d":"0.00 €"},null,{"$f":"Belegliste!#REF!","v":{"$error":"#REF!"}},{"$error":"#REF!"}]
["sonstige Aufwendungen",null,null,{"v":0,"d":"0.00 €"},null,{"$f":"Belegliste!#REF!","v":{"$error":"#REF!"}},{"$error":"#REF!"}]
["Telefon/Internet",null,null,{"v":0,"d":"0.00 €"},null,{"$f":"Belegliste!#REF!","v":{"$error":"#REF!"}},{"$error":"#REF!"}]
["Porto",null,null,{"v":0,"d":"0.00 €"},null,{"$f":"Belegliste!#REF!","v":{"$error":"#REF!"}},{"$error":"#REF!"}]
["Arbeitsmaterial/Ausstattung",null,null,{"v":0,"d":"0.00 €"},null,{"$f":"Belegliste!#REF!","v":{"$error":"#REF!"}},{"$error":"#REF!"}]
["Büromaterial",null,null,{"v":0,"d":"0.00 €"},null,{"$f":"Belegliste!#REF!","v":{"$error":"#REF!"}},{"$error":"#REF!"}]
["Fahrtkosten",null,null,{"v":0,"d":"0.00 €"},null,{"$f":"Belegliste!#REF!","v":{"$error":"#REF!"}},{"$error":"#REF!"}]
["Öffentlichkeitsarbeit",null,null,{"v":0,"d":"0.00 €"},null,{"$f":"Belegliste!#REF!","v":{"$error":"#REF!"}},{"$error":"#REF!"}]
["Leasingkosten",null,null,{"v":0,"d":"0.00 €"},null,{"$f":"Belegliste!#REF!","v":{"$error":"#REF!"}},{"$error":"#REF!"}]
["Versicherung/Abgaben",null,null,{"v":0,"d":"0.00 €"},null,{"$f":"Belegliste!#REF!","v":{"$error":"#REF!"}},{"$error":"#REF!"}]
["Beiträge",null,null,{"v":0,"d":"0.00 €"},null,{"$f":"Belegliste!#REF!","v":{"$error":"#REF!"}},{"$error":"#REF!"}]
["Freizeitmaßnahmen",null,null,{"v":0,"d":"0.00 €"},null,{"$f":"Belegliste!#REF!","v":{"$error":"#REF!"}},{"$error":"#REF!"}]
["Gesamtaufwendungen",{"$f":"SUM(B9+B10)","v":{"v":0,"d":"0.00 €"}},{"$f":"SUM(C9+C10)","v":{"v":0,"d":"0.00 €"}},{"$f":"SUM(D9+D10)","v":{"v":0,"d":"0.00 €"}},{"$f":"SUM(E9+E10)","v":{"v":0,"d":"0.00 €"}},{"$f":"SUM(F9+F10)","v":{"$error":"#REF!"}},{"$error":"#REF!"}]
["davon:"]
["Eigenanteil Träger: 2 %",{"$f":"0.02*B28","v":{"v":0,"d":"0.00 €"}},{"$f":"0.02*C28","v":{"v":0,"d":"0.00 €"}},{"v":0,"d":"0.00 €"},null,{"$f":"F28-F32-F31","v":{"$error":"#REF!"}},{"$error":"#REF!"}]
["Mittel Stadt Chemnitz: 18 %",{"$f":"0.18*B28","v":{"v":0,"d":"0.00 €"}},{"$f":"0.18*C28","v":{"v":0,"d":"0.00 €"}},{"v":0,"d":"0.00 €"},{"v":0,"d":"0.00 €"},{"$error":"#REF!"},{"$error":"#REF!"}]
["Landesmittel: 80 %",{"$f":"0.8*B28","v":{"v":0,"d":"0.00 €"}},{"$f":"0.8*C28","v":{"v":0,"d":"0.00 €"}},{"v":0,"d":"0.00 €"},{"v":0,"d":"0.00 €"},{"$error":"#REF!"},{"$error":"#REF!"}]
[]
["Zuwendung an Träger",{"$nulls":3},{"$f":"E28-E30","v":{"v":0,"d":"0.00 €"}},{"$f":"F28-F30","v":{"$error":"#REF!"}}]
["Auszahlung an Träger"]
[]
[]
["Rückforderung",{"$nulls":3},{"v":0.98,"d":"98.00%"},{"$f":"F34-C35","v":{"$error":"#REF!"}}]
["davon:"]
["Mittel Stadt Chemnitz",{"$nulls":3},{"v":0.18,"d":"18.00%"}]
["Landesmittel",{"$nulls":3},{"v":0.8,"d":"80.00%"}]
[]
[]
["Zusammenfassung"]
{"$rows_empty":7}
[{"$nulls":6},"Datum"]

{"sheet":"Belegliste","index":1,"n_rows":75,"n_cols":10,"rows_kept":75,"merged":[[1,0,1,9],[8,0,8,9],[10,0,14,0],[13,1,13,6],[14,1,14,9],[15,0,15,9],[16,0,19,0],[19,1,19,6],[20,0,20,9],[21,0,24,0],[24,1,24,6],[26,1,26,6],[27,0,27,9],[28,0,28,9],[30,0,36,0],[35,1,35,6],[36,1,36,9],[37,0,37,9],[38,0,48,0],[47,1,47,6],[48,1,48,9],[49,0,49,9],[50,1,50,6],[51,0,51,9],[52,0,52,9]]}
[]
["Belegliste zur Verwendungsnachweisprüfung"]
[]
["Projekt:","Schulsozialarbeit an ..."]
["Projektträger:"]
["Zeitraum:","01.01. - 31.12.2025"]
[]
[]
["1. Erträge"]
["Erträge","Beleg-Nr.","Auftrags-\ndatum","Rechnungs-\ndatum","Datum\nZahlungs-\neingang","Grund der Zahlung","Zahler","Überweisung/\nBarzahlung\nBetrag","Anteil in %","abgerechneter\nBetrag*"]
["1.1 Eigenanteil"]
[]
[]
[null,"Summe",{"$nulls":5},{"$f":"SUM(H11:H13)","v":{"v":0,"d":"0.00 €"}},null,{"$f":"SUM(J11:J13)","v":{"v":0,"d":"0.00 €"}}]
[null,"Hinweis: Bitte verwenden Sie für die detaillierte Aufstellung der Eigenarbeitsleistungen das folgende Tabellenblatt."]
[]
["1.2 Finanzierungsanteile\nDritter"]
[]
[]
[null,"Summe",{"$nulls":5},{"$f":"SUM(H17:H19)","v":{"v":0,"d":"0.00 €"}},null,{"$f":"SUM(J17:J19)","v":{"v":0,"d":"0.00 €"}}]
[]
["1.3 \nZuwendung \nStadt Chemnitz"]
[]
[]
[null,"Summe",{"$nulls":5},{"$f":"SUM(H22:H24)","v":{"v":0,"d":"0.00 €"}},null,{"$f":"SUM(J22:J24)","v":{"v":0,"d":"0.00 €"}}]
[]
["1.4\nGesamtertrag","Summe",{"$nulls":5},{"$f":"H14+H20+H25","v":{"v":0,"d":"0.00 €"}},null,{"$f":"J14+J20+J25","v":{"v":0,"d":"0.00 €"}}]
[]
["2. Aufwendungen"]
["Aufwendungen","Beleg-Nr.",null,"Rechnungs-datum","Zahlungs-datum","Grund der Zahlung","Zahlungsempfänger","Überweisung/\nBarzahlung\nBetrag","Anteil in %","abgerechneter Betrag*"]
["2.1\nPersonal-aufwendungen für Fachpersonal"]
[]
[]
[]
[]
[null,"Summe",{"$nulls":5},{"$f":"SUM(H31:H35)","v":{"v":0,"d":"0.00 €"}},null,{"$f":"SUM(J31:J35)","v":{"v":0,"d":"0.00 €"}}]
[null,"Hinweis: \nBitte Lohnjournale beifügen mit Angabe, für welchen Stellenumfang (Arbeitseinheit) das Lohnjournal ausgestellt wurde."]
[]
["2.2\nPersonal- und Sachaufwendungen\nbis zu 8.000,00 €\nje 1,00 AE\nVollzeitäquivalent"]
{"$rows_empty":8}
[null,"Summe",{"$nulls":5},{"$f":"SUM(H39:H47)","v":{"v":0,"d":"0.00 €"}},null,{"$f":"SUM(J39:J47)","v":{"v":0,"d":"0.00 €"}}]
[null,"Hinweise: \n1) Hier können über 2.1 hinaus gehende Personalaufwendungen für insbesondere Teamleitung und Fachberatung sowie Verwaltung abgerechnet werden. Bitte Lohnjournale beifügen mit Angabe, für welchen Stellenumfang (Anzahl Wochenstunden bzw. Arbeitseinheit) das Lohnjounal ausgestellt wurde und welcher Stellenumfang (Anzahl Wochenstunden bzw. Arbeitseinheit) abrechnet wird.\n2) Allgemeine Umlagen wie z. Bsp. für Verwaltung können hier nicht abgerechnet werden!\n3) Bitte geben Sie bei Fortbildungen, Fachveranstaltungen und Supervision Thema, Teilnehmer und Veranstaltungstag an.\n4) Anschaffungen mit einem Wert über 800,00 € sind zu inventarisieren. Die entsprechenden Listen sind dem Verwendungsnachweis beizufügen."]
[]
["2.3\nGesamt-aufwendungen","Summe",{"$nulls":5},{"$f":"H36+H48","v":{"v":0,"d":"0.00 €"}},null,{"$f":"J48+J36","v":{"v":0,"d":"0.00 €"}}]
[]
["* Hinweis zum abgerechneten Betrag:\n  1) Soweit der Zuwendungsempfänger die Möglichkeit zum Vorsteuerabzug nach § 15 des Umsatzsteuergesetzes hat, dürfen nur die Ausgaben (Preise ohne\n       Umsatzsteuer) berücksichtigt werden.\n  2) Skonti sind bei der Abrechnung abzuziehen, soweit sie durch den Zuwendungsgeber tatsächlich in Anspruch genommen wurden."]
[]
[]
["Eigenmittel"]
["Eigenarbeitsleistung"]
["projektbezogene Erträge"]
[]
["EU"]
["Bund"]
["Freistaat Sachsen"]
["Bundesagentur für Arbeit"]
["Krankenkasse"]
["Rentenversicherung"]
["sonstige Erträge"]
{"$rows_empty":8}
["Datum",{"$nulls":7},"Unterschrift/ Stempel"]

{"sheet":"Eigenarbeitsleistungen","index":2,"n_rows":46,"n_cols":7,"rows_kept":46,"merged":[[1,0,1,6]]}
[]
["Aufstellung Eigenarbeitsleistung (EAL)"]
[]
["Projekt:",null,"Schulsozialarbeit an ..."]
["Projektträger:"]
["Zeitraum:",null,"01.01. - 31.12.2025"]
[]
[]
["Lfd.-Nr.","Datum der\ngeleisteten\nStunden","Anzahl der geleisteten Stunden","verrichtete\nTätigkeit","Name des\nStundenerbringers","Wert der \nEigenarbeitsleistung*","Unterschrift des Stundenerbringers"]
{"$rows_empty":21}
["Gesamt",null,{"$f":"SUM(C10:C30)","v":{"v":0,"d":"0.00"}},null,null,{"$f":"SUM(F10:F30)","v":{"v":0,"d":"0.00 €"}}]
[]
["*Hinweise "]
[" 1) Die Bewertung der nachgewiesenen Stunden erfolgt anhand des im Förderjahr gültigen Mindestlohnes."]
[" 2) Die Eigenarbeitsleistungen dürfen nicht höher sein als der zu erbringende Eigenanteil im Angebot."]
[" 3) Die Eigenarbeitsleistungen sind ertrags- und aufwandsseitig in gleicher Höhe abzurechnen."]
{"$rows_empty":9}
["Datum",{"$nulls":4},"Unterschrift/ Stempel"]